lending/lending_fUSD_20240605
["ID","MTS","AMOUNT","RATE_DAILY","PERIOD"]
[328619424,1717619447324,-500.0,0.00029996,4]
[328619425,1717619447333,-500.0,0.00029996,4]
[328619426,1717619447344,-501.26,0.00029996,4]
[328619427,1717619447354,-1299.12,0.00029996,4]
[328619428,1717619447363,-1297.83,0.00029996,4]
[328619429,1717619447373,-500.0,0.00029996,4]
[328619430,1717619447383,-500.0,0.00029996,4]
[328619431,1717619447393,-500.0,0.00029996,4]
[328619432,1717619447402,-500.0,0.00029996,4]
[328619433,1717619447412,-500.0,0.00029996,4]
[328619434,1717619447422,-1587.12,0.00029996,4]
[328619435,1717619447431,-500.0,0.00029996,4]
[328619436,1717619447441,-646.88,0.00029996,4]
[328619437,1717619447450,-500.0,0.00029996,4]
[328619438,1717619447459,-544.77,0.00029996,4]
[328619439,1717619447469,-500.0,0.00029996,4]
[328619440,1717619447479,-500.0,0.00029996,4]
[328619441,1717619447491,-3732.59,0.00029996,4]
[328619442,1717619447501,-500.0,0.00029996,4]
[328619443,1717619447511,-500.0,0.00029996,4]
[328619444,1717619447520,-500.0,0.00029996,4]
[328619445,1717619447530,-1382.96,0.00029996,4]
[328619446,1717619447539,-500.0,0.00029996,4]
[328619447,1717619447549,-500.0,0.00029997,4]
[328619448,1717619447559,-500.0,0.00029997,4]
[328619449,1717619447571,-500.0,0.00029997,4]
[328619450,1717619447582,-500.0,0.00029997,4]
[328619451,1717619447590,-1000.0,0.00029997,5]
[328619452,1717619447600,-1000.0,0.00029997,5]
[328619453,1717619447610,-1000.0,0.00029997,5]
[328619454,1717619447619,-1000.0,0.00029997,5]
[328619455,1717619447629,-1000.0,0.00029997,5]
[328619456,1717619447639,-159.43775689,0.00029997,4]
[328619457,1717619447648,-151.0,0.00029997,7]
[328619458,1717619447657,-666.28,0.00029997,4]
[328619459,1717619447667,-2850.99054,0.00029997,2]
[328619460,1717619447676,-500.0,0.00029997,4]
[328619461,1717619447686,-500.0,0.00029997,4]
[328619462,1717619447695,-212.75545062,0.00029997,4]
[328619463,1717619447704,-240.0640802,0.00029997,4]
[328619464,1717619447713,-500.0,0.00029997,4]
[328619465,1717619447722,-500.0,0.00029997,4]
[328619466,1717619447731,-500.0,0.00029997,4]
[328619467,1717619447741,-484.78616849,0.00029997,4]
[328619468,1717619447751,-500.0,0.00029997,4]
[328619469,1717619447760,-961.51,0.00029997,4]
[328619470,1717619447769,-1590.95,0.00029997,4]
[328619471,1717619447778,-594.61,0.00029997,4]
[328619472,1717619447787,-500.0,0.00029997,4]
[328619473,1717619447796,-657.82,0.00029997,4]
[328619474,1717619447807,-632.15,0.00029997,4]
[328619475,1717619447816,-500.0,0.00029997,4]
[328619476,1717619447826,-500.0,0.00029997,4]
[328619477,1717619447835,-849.22,0.00029997,4]
[328619478,1717619447844,-1299.12,0.00029997,4]
[328619479,1717619447854,-2647.83,0.00029997,4]
[328619480,1717619447863,-1297.83,0.00029997,4]
[328619481,1717619447873,-500.0,0.00029997,4]
[328619482,1717619447883,-500.0,0.00029997,4]
[328619483,1717619447893,-500.0,0.00029997,4]
[328619484,1717619447902,-500.0,0.00029997,4]
[328619485,1717619447912,-500.0,0.00029997,4]
[328619486,1717619447921,-500.0,0.00029997,4]
[328619487,1717619447931,-500.0,0.00029997,4]
[328619488,1717619447941,-500.0,0.00029997,4]
[328619489,1717619447950,-500.0,0.00029997,4]
[328619490,1717619447960,-732.25,0.00029997,4]
[328619491,1717619447970,-1587.12,0.00029997,4]
[328619492,1717619447979,-500.0,0.00029997,4]
[328619493,1717619447988,-646.88,0.00029997,4]
[328619494,1717619447998,-500.0,0.00029997,2]
[328619495,1717619448007,-518.69,0.00029997,4]
[328619496,1717619448016,-500.0,0.00029997,2]
[328619497,1717619448026,-500.0,0.00029997,2]
[328619498,1717619448035,-500.0,0.00029997,2]
[328619499,1717619448044,-500.0,0.00029997,2]
[328619500,1717619448056,-500.0,0.00029997,4]
[328619501,1717619448066,-500.0,0.00029997,2]
[328619502,1717619448075,-544.77,0.00029997,4]
[328619503,1717619448085,-500.0,0.00029997,4]
[328619504,1717619448093,-500.0,0.00029997,4]
[328619505,1717619448102,-500.0,0.00029997,4]
[328619506,1717619448111,-500.0,0.00029997,4]
[328619507,1717619448120,-3732.59,0.00029997,4]
[328619508,1717619448130,-500.0,0.00029997,4]
[328619509,1717619448140,-1077.74,0.00029997,4]
[328619510,1717619448149,-500.0,0.00029997,4]
[328619511,1717619448159,-500.0,0.00029997,2]
[328619512,1717619448168,-500.0,0.00029997,2]
[328619513,1717619448178,-500.0,0.00029997,2]
[328619514,1717619448187,-500.0,0.00029997,2]
[328619515,1717619448196,-500.0,0.00029997,2]
[328619516,1717619448206,-568.64028121,0.00029997,2]
[328619517,1717619448216,-632.2,0.00029997,4]
[328619518,1717619448226,-500.0,0.00029997,4]
[328619519,1717619448236,-500.0,0.00029997,4]
[328619520,1717619448246,-442.49734782,0.00029997,4]
[328619521,1717619448256,-500.0,0.00029997,4]
[328619522,1717619448266,-500.0,0.00029997,4]
[328619523,1717619448276,-500.0,0.00029997,4]
[328619524,1717619448286,-500.0,0.00029997,4]
[328619525,1717619448295,-636.2,0.00029997,4]
[328619526,1717619448306,-636.2,0.00029997,4]
[328619527,1717619448316,-636.2,0.00029997,4]
[328619528,1717619448325,-636.2,0.00029997,4]
[328619529,1717619448335,-636.2,0.00029997,4]
[328619530,1717619448345,-636.2,0.00029997,4]
[328619531,1717619448354,-1382.96,0.00029997,4]
[328619532,1717619448364,-500.0,0.00029997,4]
[328619533,1717619448373,-500.0,0.00029997,4]
[328619534,1717619448383,-500.0,0.00029997,4]
[328619535,1717619448393,-500.0,0.00029997,4]
[328619536,1717619448402,-500.0,0.00029997,4]
[328619537,1717619448412,-214.63298986,0.00029998,2]
[328619538,1717619448535,-66304.91649072,0.00029998,2]
[328619539,1717619448544,-5889.05435153,0.00029998,2]
[328619540,1717619448557,-180.2133523,0.00029998,2]
[328619541,1717619448569,-327.22308883,0.00029998,2]
[328619542,1717619448579,-155.0,0.00029998,2]
[328619543,1717619448589,-238.00596447,0.00029998,2]
[328619544,1717619448599,-1275.18335769,0.00029998,2]
[328619545,1717619448608,-5783.46368518,0.00029998,2]
[328619546,1717619448741,-177.29305838,0.00029998,2]
[328619547,1717619448751,-266.47047598,0.00029998,2]
[328619548,1717619448761,-641.21249997,0.00029998,2]
[328619549,1717619448772,-159.08875965,0.00029998,2]
[328619550,1717619448782,-465.03141336,0.00029998,2]
[328619551,1717619448791,-246.6409296,0.00029998,2]
[328619552,1717619448802,-189.52311238,0.00029998,2]
[328619553,1717619448812,-155.0,0.00029998,2]
[328619554,1717619448822,-155.16490413,0.00029998,2]
[328619555,1717619448831,-248.88858283,0.00029998,2]
[328619556,1717619448840,-411.3026678,0.00029998,2]
[328619557,1717619448850,-627.26830154,0.00029998,2]
[328619558,1717619448859,-161.27128855,0.00029998,2]
[328619559,1717619448869,-234.1947747,0.00029998,2]
[328619560,1717619448878,-783.48136778,0.00029998,2]
[328619561,1717619448888,-211.53018415,0.00029998,2]
[328619562,1717619448897,-506.11774641,0.00029998,2]
[328619563,1717619448907,-406.96378159,0.00029998,2]
[328619564,1717619448916,-156.2601336,0.00029998,2]
[328619565,1717619448926,-195.46467376,0.00029998,2]
[328619566,1717619448936,-241.58141684,0.00029998,2]
[328619567,1717619448945,-4165.37375278,0.00029998,2]
[328619568,1717619448955,-292.95560354,0.00029998,2]
[328619569,1717619448965,-353.96696625,0.00029998,10]
[328619570,1717619448974,-1860.16773986,0.00029998,2]
[328619571,1717619448984,-155.19809542,0.00029998,2]
[328619572,1717619448994,-599.99905024,0.00029998,2]
[328619573,1717619449004,-157.03865489,0.00029998,2]
[328619574,1717619449013,-155.0,0.00029998,2]
[328619575,1717619449023,-155.0,0.00029998,2]
[328619576,1717619449032,-162.97578809,0.00029998,2]
[328619577,1717619449042,-155.42233323,0.00029998,2]
[328619578,1717619449052,-284.73321249,0.00029998,2]
[328619579,1717619449062,-158.06112085,0.00029998,2]
[328619580,1717619449073,-687.51527312,0.00029998,2]
[328619581,1717619449084,-210.11447547,0.00029998,2]
[328619582,1717619449093,-578.92749038,0.00029998,7]
[328619583,1717619449102,-31057.67228818,0.00029998,2]
[328619584,1717619449111,-5758.70837434,0.00029998,2]
[328619585,1717619449121,-931.38251612,0.00029998,2]
[328619586,1717619449131,-322.03848451,0.00029998,2]
[328619587,1717619449140,-150.01,0.00029998,2]
[328619588,1717619449149,-2000.0,0.00029998,2]
[328619589,1717619449159,-200.0,0.00029998,2]
[328619590,1717619449168,-500.0,0.00029998,4]
[328619591,1717619449177,-500.0,0.00029998,4]
[328619592,1717619449187,-311.79132925,0.00029998,4]
[328619593,1717619449196,-280.730796,0.00029998,7]
[328619594,1717619449206,-500.0,0.00029998,4]
[328619595,1717619449216,-582.12760149,0.00029998,4]
[328619596,1717619449226,-364.5609282,0.00029998,2]
[328619597,1717619449236,-3066.76266132,0.00029998,2]
[328619598,1717619449245,-2364.70119173,0.00029998,2]
[328619599,1717619449255,-1814.20109917,0.00029998,2]
[328619600,1717619449265,-176.371291,0.00029998,2]
[328619601,1717619449275,-338.91704323,0.00029998,2]
[328619602,1717619449284,-1048.02052607,0.00029998,2]
[328619603,1717619449294,-1228.40769558,0.00029998,2]
[328619604,1717619449306,-599.45311557,0.00029998,2]
[328619605,1717619449315,-1092.97742483,0.00029998,2]
[328619606,1717619449325,-285.60547,0.00029998,2]
[328619607,1717619449334,-2398.6096652,0.00029998,2]
[328619608,1717619449343,-7516.02935598,0.00029998,2]
[328619609,1717619449352,-5633.65422796,0.00029998,2]
[328619610,1717619449362,-770.40992888,0.00029998,2]
[328619611,1717619449371,-666.28,0.00029998,4]
[328619612,1717619449380,-500.0,0.00029998,4]
[328619613,1717619449389,-500.0,0.00029998,4]
[328619614,1717619449398,-961.51,0.00029998,4]
[328619615,1717619449408,-1590.95,0.00029998,4]
[328619616,1717619449417,-1590.95,0.00029998,4]
[328619617,1717619449427,-594.61,0.00029998,4]
[328619618,1717619449436,-594.61,0.00029998,4]
[328619619,1717619449445,-500.0,0.00029998,4]
[328619620,1717619449455,-500.0,0.00029998,4]
[328619621,1717619449464,-657.82,0.00029998,4]
[328619622,1717619449474,-657.82,0.00029998,4]
[328619623,1717619449484,-500.0,0.00029998,4]
[328619624,1717619449498,-1332.25281997,0.00029998,2]
[328619625,1717619449508,-500.0,0.00029998,4]
[328619626,1717619449518,-500.0,0.00029998,4]
[328619627,1717619449527,-849.22,0.00029998,4]
[328619628,1717619449537,-849.22,0.00029998,4]
[328619629,1717619449547,-1299.12,0.00029998,4]
[328619630,1717619449559,-2647.83,0.00029998,4]
[328619631,1717619449572,-2647.83,0.00029998,4]
[328619632,1717619449583,-1297.83,0.00029998,4]
[328619633,1717619449592,-500.0,0.00029998,4]
[328619634,1717619449602,-500.0,0.00029998,4]
[328619635,1717619449611,-180.49727056,0.00029998,2]
[328619636,1717619449621,-500.0,0.00029998,4]
[328619637,1717619449631,-500.0,0.00029998,4]
[328619638,1717619449641,-500.0,0.00029998,4]
[328619639,1717619449651,-500.0,0.00029998,4]
[328619640,1717619449660,-500.0,0.00029998,4]
[328619641,1717619449670,-500.0,0.00029998,4]
[328619642,1717619449680,-500.0,0.00029998,4]
[328619643,1717619449690,-500.0,0.00029998,4]
[328619644,1717619449699,-500.0,0.00029998,4]
[328619645,1717619449709,-500.0,0.00029998,4]
[328619646,1717619449719,-732.25,0.00029998,4]
[328619647,1717619449729,-732.25,0.00029998,4]
[328619648,1717619449739,-1587.12,0.00029998,4]
[328619649,1717619449748,-646.88,0.00029998,4]
[328619650,1717619449759,-646.88,0.00029998,4]
[328619651,1717619449768,-518.69,0.00029998,4]
[328619652,1717619449778,-518.69,0.00029998,4]
[328619653,1717619449787,-500.0,0.00029998,4]
[328619654,1717619449798,-500.0,0.00029998,4]
[328619655,1717619449810,-544.77,0.00029998,4]
[328619656,1717619449820,-544.77,0.00029998,4]
[328619657,1717619449829,-500.0,0.00029998,4]
[328619658,1717619449840,-500.0,0.00029998,4]
[328619659,1717619449850,-500.0,0.00029998,4]
[328619660,1717619449859,-500.0,0.00029998,4]
[328619661,1717619449869,-500.0,0.00029998,4]
[328619662,1717619449878,-446.25,0.00029998,4]
[328619663,1717619449888,-3732.59,0.00029998,4]
[328619664,1717619449898,-3732.59,0.00029998,4]
[328619665,1717619449908,-263.276298,0.00029998,2]
[328619666,1717619449918,-155.78402466,0.00029998,2]
[328619667,1717619449933,-500.0,0.00029998,4]
[328619668,1717619449949,-1077.74,0.00029998,4]
[328619669,1717619449964,-1077.74,0.00029998,4]
[328619670,1717619449976,-632.2,0.00029998,4]
[328619671,1717619449987,-632.2,0.00029998,4]
[328619672,1717619450001,-500.0,0.00029998,4]
[328619673,1717619450013,-500.0,0.00029998,4]
[328619674,1717619450027,-500.0,0.00029998,4]
[328619675,1717619450040,-500.0,0.00029998,4]
[328619676,1717619450054,-500.0,0.00029998,4]
[328619677,1717619450069,-500.0,0.00029998,4]
[328619678,1717619450084,-500.0,0.00029998,4]
[328619679,1717619450097,-500.0,0.00029998,4]
[328619680,1717619450109,-2000.0,0.00029998,2]
[328619681,1717619450121,-500.0,0.00029998,4]
[328619682,1717619450134,-200.0,0.00029998,2]
[328619683,1717619450146,-444.06115822,0.00029998,2]
[328619684,1717619450160,-500.0,0.00029998,4]
[328619685,1717619450174,-500.0,0.00029998,4]
[328619686,1717619450187,-636.2,0.00029998,4]
[328619687,1717619450198,-636.2,0.00029998,4]
[328619688,1717619450210,-1382.96,0.00029998,4]
[328619689,1717619450222,-1382.96,0.00029998,4]
[328619690,1717619450236,-500.0,0.00029998,4]
[328619691,1717619450248,-500.0,0.00029998,4]
[328619692,1717619450262,-500.0,0.00029998,4]
[328619693,1717619450274,-500.0,0.00029998,4]
[328619694,1717619450288,-500.0,0.00029998,4]
[328619695,1717619450302,-329.98,0.00029998,4]
[328619696,1717619450315,-500.0,0.00029998,4]
[328619697,1717619450325,-500.0,0.00029998,4]
[328619698,1717619450335,-290.65325833,0.00029999,13]
[328619699,1717619450351,-546.47514523,0.00029999,13]
[328619700,1717619450366,-2943.92849998,0.00029999,13]
[328619701,1717619450381,-17815.86849114,0.00029999,13]
[328619702,1717619451226,446.22492722,0.00022499,2]
[328619704,1717619455786,4755.14039967,0.00022499,2]
[328619706,1717619456080,226.57668191,0.00022499,2]
[328619707,1717619476088,226.57668191,0.00022499,2]
[328619708,1717619500086,226.57668191,0.00022499,2]
[328619710,1717619510239,2610.75390442,0.00022049,2]
[328619711,1717619512463,268.48809142,0.00017259,2]
[328619712,1717619519734,700.85634883,0.00022499,2]
[328619713,1717619519755,1452.86186706,0.00022499,2]
[328619714,1717619521189,201.51061122,0.00017259,2]
[328619715,1717619522106,226.57668191,0.00022499,2]
[328619716,1717619522136,2394.209303,0.00022049,2]
[328619717,1717619540130,2078.57603791,0.00022049,2]
[328619718,1717619542096,226.57668191,0.00022499,2]
[328619719,1717619554924,2551.85569516,0.00016874,2]
[328619720,1717619623856,227779.68723413,0.00014,2]
[328619721,1717619623883,3146803.68970048,0.00014,2]
[328619722,1717619644666,14856.58775535,0.000118,2]
[328619723,1717619651464,3003.58267377,0.00011,2]
[328619724,1717619670284,3215.5799,6.94e-05,2]
[328619729,1717619700154,164.43261541,0.000285,120]
[328619730,1717619753477,205.0,9.8e-05,2]
[328619737,1717619793558,4015.01259293,0.0001,2]
[328619739,1717619831321,209.62840998,0.0001,2]
[328619741,1717619905524,625.70433105,0.00017259,2]
[328619743,1717620070916,296.58359376,0.00017259,2]
[328619744,1717620076109,1248.31846585,0.00017259,2]
[328619745,1717620078772,524.93081759,0.00017259,2]
[328619746,1717620084960,197.62,0.00026152,120]
[328619747,1717620156287,201.51061122,0.00017259,2]
[328619749,1717620297574,-275.08157336,0.00019351,2]
[328619750,1717620297599,-649.22707857,0.0001945,2]
[328619751,1717620297625,-150.0,0.00019451,2]
[328619752,1717620297650,-1723.61,0.00019452,2]
[328619753,1717620297861,-1890.65397292,0.0002,7]
[328619755,1717620336468,-226.57668191,0.000201,2]
[328619756,1717620336495,-1795.0,0.000209,3]
[328619757,1717620336706,-695.0,0.000209,3]
[328619758,1717620404405,11000.0,0.00017259,2]
[328619759,1717620404430,7042.4270975,0.00017259,2]
[328619761,1717620418138,625.70433105,0.00017259,2]
[328619762,1717620436155,-166.66,0.00021012,2]
[328619763,1717620436174,-226.57668191,0.00021261,2]
[328619764,1717620436195,-161.38,0.00021262,2]
[328619765,1717620436214,-2031.61949413,0.00021949,2]
[328619766,1717620438746,-4623.51737117,0.00021949,2]
[328619767,1717620548118,-1248.31846585,0.00019451,2]
[328619768,1717620549229,-575.63967207,0.00021012,2]
[328619769,1717620549250,-1000.0,0.00021885,2]
[328619770,1717620558728,-226.57668191,0.00021947,2]
[328619771,1717620558748,-2609.8027349,0.00022049,2]
[328619772,1717620558768,-4346.7,0.00022049,2]
[328619773,1717620558788,-499.99,0.00022329,2]
[328619774,1717620558812,-150.99,0.00022329,2]
[328619775,1717620558832,-150.0,0.00022329,2]
[328619776,1717620558854,-947.22670795,0.00022499,2]
[328619777,1717620558874,-3091.02279623,0.00022499,2]
[328619778,1717620558895,-10514.36067913,0.00022499,2]
[328619779,1717620558915,-181.24676322,0.00022499,2]
[328619780,1717620558935,-3700.81825935,0.00023599,2]
[328619781,1717620558956,-14293.93050608,0.000236,2]
[328619782,1717620560293,648.41512651,0.000219,2]
[328619783,1717620565092,-9800.18700821,0.000236,2]
[328619789,1717620572748,226.57668191,0.00022499,2]
[328619790,1717620588738,226.57668191,0.00022499,2]
[328619791,1717620590632,668.9756,0.00021849,2]
[328619796,1717620608732,226.57668191,0.00022499,2]
[328619797,1717620626755,226.57668191,0.00022499,2]
[328619802,1717620631674,-267.02703309,0.0002381,2]
[328619804,1717620631685,-155.54656387,0.00023998,2]
[328619805,1717620631697,-408.85640308,0.00024,3]
[328619806,1717620631711,-656.15757597,0.00024,3]
[328619807,1717620631722,-300.0,0.00024284,2]
[328619808,1717620631734,-264.33,0.00024384,2]
[328619809,1717620631744,-241.25,0.00024384,2]
[328619810,1717620631756,-163.2,0.00024384,2]
[328619811,1717620631771,-96.97437403,0.00024504,2]
[328619812,1717620631789,-669.69562597,0.00024504,2]
[328619813,1717620631800,-250.0,0.00025628,2]
[328619814,1717620631811,-150.0,0.00025776,2]
[328619815,1717620631827,-300.5,0.00025939,2]
[328619816,1717620631838,-200.0,0.00026065,2]
[328619817,1717620631848,-250.0,0.00026259,2]
[328619818,1717620631860,-1000.0,0.000263,2]
[328619819,1717620631870,-167.48,0.0002634,2]
[328619820,1717620631882,-56.30497403,0.00026377,2]
[328619821,1717620631898,-685.15,0.00026377,2]
[328619822,1717620631912,-23158.54502597,0.00026377,2]
[328619823,1717620631923,-557.04,0.00026388,2]
[328619824,1717620631934,-200.0,0.00026399,2]
[328619825,1717620631946,-250.0,0.00026419,2]
[328619826,1717620631957,-2751.0,0.00026422,2]
[328619827,1717620631969,-1632.91,0.00026496,2]
[328619828,1717620631979,-4219.91,0.00026655,2]
[328619829,1717620631990,-157.72,0.00026678,2]
[328619830,1717620632001,-766.67,0.00026768,2]
[328619831,1717620632017,-12722.51419179,0.00027,2]
[328619832,1717620632030,-2057.76,0.00027281,2]
[328619833,1717620632043,-503.18397037,0.00027397,4]
[328619834,1717620632055,-500.0,0.00027397,4]
[328619835,1717620632068,-500.0,0.00027397,4]
[328619836,1717620632080,-501.96089638,0.00027397,4]
[328619837,1717620632092,-500.0,0.00027397,4]
[328619838,1717620632105,-502.87941136,0.00027397,4]
[328619839,1717620632117,-500.0,0.00027397,4]
[328619840,1717620632130,-290.83451792,0.00027397,4]
[328619841,1717620632141,-503.82815629,0.00027397,4]
[328619842,1717620632153,-202.21425888,0.00027397,4]
[328619843,1717620632166,-506.38225732,0.00027397,4]
[328619844,1717620632178,-507.16429978,0.00027397,4]
[328619845,1717620632190,-506.2343263,0.00027397,4]
[328619846,1717620632202,-502.68754491,0.00027397,4]
[328619848,1717620632213,-536.66782525,0.00027397,4]
[328619850,1717620632225,-500.0,0.00027397,4]
[328619852,1717620632237,-551.33118795,0.00027397,4]
[328619854,1717620632248,-500.0,0.00027397,4]
[328619856,1717620632260,-481.74797097,0.00027397,4]
[328619859,1717620632274,-506.13519726,0.00027397,4]
[328619861,1717620632285,-502.74230094,0.00027397,4]
[328619863,1717620632297,-502.45291054,0.00027397,4]
[328619866,1717620632309,-500.0,0.00027397,4]
[328619868,1717620632321,-501.96108655,0.00027397,4]
[328619870,1717620632334,-502.52296194,0.00027397,4]
[328619872,1717620632345,-204.59475465,0.00027397,4]
[328619875,1717620632357,-502.84797769,0.00027397,4]
[328619877,1717620632368,-500.0,0.00027397,4]
[328619879,1717620632377,-500.0,0.00027397,4]
[328619905,1717620632604,-502.07172071,0.00027397,4]
[328619907,1717620632619,-214.60592809,0.00027397,4]
[328619909,1717620632629,-166.29,0.00028081,2]
[328619911,1717620632638,-183.52,0.00028416,2]
[328619913,1717620632647,-177.93545673,0.00028498,2]
[328619915,1717620632657,-530.20717467,0.00028498,2]
[328619917,1717620632666,-764.35360323,0.00028798,2]
[328619919,1717620632676,-910.0,0.000288,2]
[328619922,1717620632685,-300.0,0.000289,10]
[328619923,1717620632695,-14199.99999999,0.0002898,2]
[328619926,1717620632705,-265.85210799,0.0002899,2]
[328619928,1717620632714,-1037.50005089,0.00029,2]
[328619929,1717620632723,-764.95819682,0.00029,2]
[328619931,1717620632732,-839.39838975,0.00029,2]
[328619932,1717620632742,-700.0,0.00029,10]
[328619933,1717620632752,-766.67,0.00029032,2]
[328619934,1717620632762,-609.84,0.00029058,2]
[328619935,1717620632772,-179.04202126,0.00029064,2]
[328619936,1717620632781,-1000.0,0.000291,10]
[328619937,1717620632791,-5000.0,0.00029143,2]
[328619938,1717620632801,-764.61,0.00029164,2]
[328619939,1717620632810,-1400.0,0.000292,10]
[328619940,1717620632824,-5026.77,0.00029234,2]
[328619941,1717620632833,-1632.91,0.00029236,2]
[328619942,1717620632843,-179.04202122,0.00029247,2]
[328619943,1717620632853,-153.93136066,0.000293,15]
[328619944,1717620632865,-1800.0,0.000293,10]
[328619945,1717620632875,-5000.0,0.00029319,2]
[328619946,1717620632885,-5000.0,0.00029329,2]
[328619947,1717620632895,-5000.0,0.00029366,2]
[328619948,1717620632904,-500.0,0.00029376,4]
[328619949,1717620632914,-5329.07035432,0.0002938,2]
[328619950,1717620632923,-5000.0,0.00029385,2]
[328619951,1717620632933,-1574.70455313,0.000294,15]
[328619952,1717620632942,-300.0,0.000294,10]
[328619953,1717620632952,-5000.0,0.00029414,2]
[328619954,1717620632960,-10000.0,0.00029415,2]
[328619955,1717620632970,-179.04202122,0.0002943,2]
[328619956,1717620632979,-1574.70455312,0.00029456,15]
[328619957,1717620632988,-1824.005844,0.000295,2]
[328619958,1717620632997,-1011.22,0.000295,2]
[328619959,1717620633007,-300.0,0.000295,10]
[328619960,1717620633017,-1574.70455312,0.00029511,15]
[328619961,1717620633026,-1574.70455312,0.00029567,15]
[328619962,1717620633036,-1000.0,0.00029587,2]
[328619963,1717620633045,-5145.78189032,0.0002959,2]
[328619964,1717620633055,-4686.475,0.000296,2]
[328619965,1717620633064,-8204.0806,0.000296,2]
[328619966,1717620633074,-3593.8728,0.000296,2]
[328619967,1717620633083,-2736.008766,0.000296,2]
[328619968,1717620633093,-300.0,0.000296,10]
[328619969,1717620633102,-179.04202122,0.00029613,2]
[328619970,1717620633112,-1574.70455312,0.00029622,15]
[328619971,1717620633121,-25000.0,0.00029633,2]
[328619972,1717620633131,-1574.70455312,0.00029678,15]
[328619973,1717620633141,-25000.0,0.00029685,2]
[328619974,1717620633150,-3648.011688,0.000297,2]
[328619975,1717620633160,-174.1821,0.000297,2]
[328619976,1717620633169,-2375.82545,0.000297,2]
[328619977,1717620633179,-300.0,0.000297,10]
[328619978,1717620633188,-191.36,0.00029705,2]
[328619979,1717620633197,-2326.38,0.00029705,2]
[328619980,1717620633206,-25000.0,0.00029715,2]
[328619981,1717620633215,-157.65197625,0.0002972,2]
[328619982,1717620633225,-1574.70455312,0.00029733,15]
[328619983,1717620633234,-156.59500445,0.00029734,2]
[328619984,1717620633243,-167.08821758,0.00029739,2]
[328619985,1717620633252,-1000.0,0.00029759,30]
[328619986,1717620633261,-167.08821758,0.00029759,2]
[328619987,1717620633272,-5000.0,0.00029778,2]
[328619988,1717620633290,-1574.70455312,0.00029789,15]
[328619989,1717620633301,-168.06722232,0.00029796,2]
[328619990,1717620633311,-179.04202122,0.00029796,2]
[328619991,1717620633321,-314.23597978,0.00029796,2]
[328619992,1717620633331,-1043.3432,0.00029798,2]
[328619993,1717620633340,-4560.014611,0.000298,2]
[328619994,1717620633350,-6384.020455,0.000298,2]
[328619995,1717620633360,-1011.22,0.000298,2]
[328619996,1717620633370,-800.0,0.000298,10]
[328619997,1717620633380,-316.46,0.000298,2]
[328619998,1717620633390,-155.0,0.000298,2]
[328619999,1717620633399,-157.81,0.00029808,30]
[328620000,1717620633409,-1470.0,0.00029814,2]
[328620001,1717620633419,-3495.534,0.00029824,2]
[328620002,1717620633428,-1574.70455312,0.00029844,15]
[328620003,1717620633439,-5000.0,0.00029854,2]
[328620004,1717620633449,-2326.38,0.00029863,2]
[328620005,1717620633458,-5000.0,0.0002987,2]
[328620006,1717620633468,-5000.0,0.00029873,2]
[328620007,1717620633480,-5000.0,0.0002988,2]
[328620008,1717620633490,-191.36,0.00029886,2]
[328620009,1717620633500,-2326.38,0.00029886,2]
[328620010,1717620633510,-2326.38,0.00029886,2]
[328620011,1717620633521,-203.72089018,0.00029887,2]
[328620012,1717620633531,-500.0,0.00029895,4]